Cogmind - Beta 17 @@@ ROGUE MODE // 2026.07.08 @ 07:53:16 Player: blabber Result: Destroyed by Y-45 Defender with Heavy Assault Rifle Performance ------------- Evolutions (1) 500 Regions Visited (3) 600 Robots Destroyed (9) 45 Value Destroyed (167) 167 Prototype IDs (0) 0 Alien Tech Used (0) 0 Bonus (0) 0 TOTAL SCORE: 1312 Bonus ------- None Cogmind --------- Core Integrity 0/400 Matter 52/500 Energy 90/100 System Corruption 0% Temperature Cool (6) Movement Core (400) Ox7 Location -9/Materials Parts ------- > --- POWER (1) -------- (None) > --- PROPULSION (4) --- (None) > --- UTILITY (2) ------ Large Storage Unit High-capacity Matter Pod > --- WEAPON (2) ------- (None) > --- INVENTORY (15) --- Large Storage Unit Large Matter Pod (0) High-capacity Matter Pod (0) Light Assault Rifle Light Assault Rifle Grenade Launcher Rocket Launcher Peak State ------------ > --- POWER ------------ Light Ion Engine > --- PROPULSION ------- Aluminum Leg Aluminum Leg > --- UTILITY ---------- Large Storage Unit High-capacity Matter Pod > --- WEAPON ----------- Assault Rifle Light Assault Rifle > --- INVENTORY -------- Light Ion Engine Compact Wheel Compact Wheel Large Storage Unit Large Matter Pod High-capacity Matter Pod Small Laser Grenade Launcher Grenade Launcher Rocket Launcher [Rating: 8] Favorites ----------- Power Light Ion Engine Engine Light Ion Engine Propulsion Aluminum Leg Leg Aluminum Leg Wheel Compact Wheel Utility High-capacity Matter Pod Storage High-capacity Matter Pod Weapon Light Assault Rifle Energy Gun Small Laser Ballistic Gun Light Assault Rifle Launcher Rocket Launcher Special Weapon Mining Laser Build | -11 -10 -10 -9 ------- Run | Yrd Mat Min Mat Slots Evolved 2 | . . . 2 Power . | . . . . Propulsion 2 | . . . 2 Utility . | . . . . Weapon . | . . . . Parts Attached 19 | 6 2 7 4 Power 2 | 1 . 1 . Engine 2 | 1 . 1 . Core . | . . . . Reactor . | . . . . Propulsion 4 | 2 . 2 . Treads . | . . . . Leg 2 | 2 . . . Wheel 2 | . . 2 . Hover . | . . . . Flight . | . . . . Utility 3 | 1 2 . . Device . | . . . . Storage 3 | 1 2 . . Processor . | . . . . Hackware . | . . . . Protection . | . . . . Artifact . | . . . . Weapon 10 | 2 . 4 4 Energy Gun 1 | . . . 1 Energy Cannon . | . . . . Ballistic Gun 4 | 2 . 2 . Ballistic Cannon . | . . . . Launcher 3 | . . 2 1 Special Weapon 2 | . . . 2 Impact Weapon . | . . . . Slashing Weapon . | . . . . Piercing Weapon . | . . . . Special Melee Weapon . | . . . . Unidentified Prototypes . | . . . . Parts Lost 10 | . . 4 6 Power 2 | . . 1 1 Propulsion 3 | . . 1 2 Utility . | . . . . Weapon 5 | . . 2 3 Highest Loss Streak 4 | . . 4 3 To Critical Strikes . | . . . . Average Backups 7 | 2 7 10 6 Power . | . 1 . . Propulsion 1 | 1 2 1 . Utility 2 | . 1 3 3 Weapon 3 | . 2 4 3 Tool/Special . | . . . . Unused Backups 4 | . 1 . 3 Power . | . . . . Propulsion 1 | . 1 . . Utility 3 | . . . 3 Weapon . | . . . . Tool/Special . | . . . . Average Slot Usage (%) 89 | . 96 97 64 Engine 11 | . 14 12 7 Leg 18 | . 28 21 . Wheel 7 | . . 5 19 Storage 25 | . 24 28 22 Ballistic Gun 22 | . 28 26 9 Peak Build Rating 8 | 6 7 8 8 Average Rating 6 | 4 6 7 5 On Entrance 5 | . 6 7 7 Avg Prop Armor Cover (%) . | . . . . Naked Turns . | . . . . Heaviest Build 32 | 11 30 30 32 Greatest Support 32 | 20 20 32 32 Greatest Overweight (x) 1 | . 1 1 1 Average Overweight (x) . | . . . . Largest Inventory Capacity 15 | 8 15 15 15 Average Capacity 13 | 6 10 15 15 Most Carried 12 | 4 9 12 8 Average Carried 7 | 2 7 10 6 Final Capacity 15 | 8 15 15 15 Final Carried 9 | 4 9 6 7 Class Distribution -------------------- 100% | Mutant Dominant Class ---------------- Mutant | -10/Materials Mutant | -10/Mines Mutant | -9/Materials Resources | -11 -10 -10 -9 ----------- Run | Yrd Mat Min Mat Matter Collected 289 | 208 . 41 40 Remotely . | . . . . Salvage Created 113 | . . 75 38 Parts 14 | . . 5 9 Haulers Intercepted . | . . . . Recyclers Shooed . | . . . . Parts Field Recycled . | . . . . Retrieved Matter . | . . . . Parts Self-Destructed . | . . . . Prevented . | . . . . Parts Restored . | . . . . Kills | -11 -10 -10 -9 ------- Run | Yrd Mat Min Mat Combat Hostiles Destroyed 8 | . . 4 4 Guns 2 | . . 2 . AOE 6 | . . 2 4 Classes Destroyed 3 | . . 2 1 Watcher 1 | . . . 1 Swarmer 6 | . . 2 4 Grunt 2 | . . 2 . Best Kill Streak 5 | . . 2 5 Combat Bots Only 4 | . . 2 4 Max Kills in Single Turn 2 | . . 1 2 Gunslinging . | . . . . Exploded 2 | . . 1 2 Melee . | . . . . Uniques/NPCs Destroyed . | . . . . Combat | -11 -10 -10 -9 -------- Run | Yrd Mat Min Mat Hostile Shots Fired 144 | . 13 43 88 Missed 34 | . 5 8 21 Hits 110 | . 8 35 67 Projectile 110 | . 8 35 67 Damage Taken 1473 | . 88 516 869 Core 541 | . 22 110 409 Absorbed by Shields . | . . . . Core Remaining (%) 73 | 100 . 47 . Volleys Fired 43 | . 2 23 18 Largest 2 | . 2 2 2 Hottest 200 | . 40 50 200 Shots Fired 70 | . 4 41 25 Gun 55 | . 4 34 17 Cannon . | . . . . Launcher 13 | . . 7 6 Special 2 | . . . 2 Kinetic 44 | . 4 34 6 Thermal 13 | . . . 13 Explosive 13 | . . 7 6 Electromagnetic . | . . . . Robot Hit Streak 10 | . 2 10 5 Robot Miss Streak 5 | . 2 3 5 Penetration Max . | . . . . Secondary Targets . | . . . . Shots Hit Robots 42 | . 2 30 10 Core Hits 15 | . . 8 7 Critical Kills . | . . . . Critical Parts Destroyed . | . . . . Critical Strikes . | . . . . Melee Attacks . | . . . . Impact . | . . . . Slashing . | . . . . Piercing . | . . . . Sneak Attacks . | . . . . Combat Hostiles . | . . . . Follow-up Attacks . | . . . . Damage Inflicted 968 | . 18 522 428 Guns 338 | . 18 227 93 Cannons . | . . . . Explosions 626 | . . 295 331 Melee . | . . . . Ramming 4 | . . . 4 Kinetic 252 | . 18 227 7 Thermal 86 | . . . 86 Explosive 626 | . . 295 331 Electromagnetic . | . . . . Impact . | . . . . Slashing . | . . . . Piercing . | . . . . Highest Corruption . | . . . . Average Corruption . | . . . . Corruption Purged . | . . . . Corruption Blocked . | . . . . Overload Shots . | . . . . Overflow Damage 10 | . . 10 . Projectiles . | . . . . Explosions 10 | . . 10 . Melee . | . . . . Knockbacks . | . . . . Impact . | . . . . Kinetic . | . . . . Secondary . | . . . . Self-Inflicted Damage 161 | . . 133 28 Shots 9 | . . 7 2 Rammed 3 | . . . 3 Targets Rammed 3 | . . . 3 Kicked . | . . . . Crushed . | . . . . Highest Temperature 45 | . . 40 45 Average Temperature 12 | . . 15 10 Received Heat Transfer 510 | . 48 186 276 Siege Activations . | . . . . Martial Activations . | . . . . Shielding Activations . | . . . . Robots Disrupted . | . . . . Combat Hostiles . | . . . . Robots Corrupted . | . . . . Combat Hostiles . | . . . . Parts Fried . | . . . . Impact Corruptions . | . . . . Robots Melted . | . . . . Combat Hostiles . | . . . . Parts Melted . | . . . . Heat Transferred 200 | . . . 200 Parts Sabotaged . | . . . . Parts Stolen . | . . . . Parts Stripped . | . . . . Power Chain Reactions . | . . . . Alert | -11 -10 -10 -9 ------- Run | Yrd Mat Min Mat Maximum Alert Level . | . . . . Low Security (%) 100 | 100 100 100 100 Level 1 . | . . . . Level 2 . | . . . . Level 3 . | . . . . Level 4 . | . . . . Level 5 . | . . . . High Security . | . . . . Max Security . | . . . . Peak Influence 140 | . . 50 140 Initial . | . . . . Average 19 | . . 8 69 Influence Increases 277 | . . 110 167 Destroy 0b10 Robot/C 160 | . . 80 80 Destroy 0b10 Robot/NC 5 | . . . 5 Destroy Leader 32 | . . 20 12 Disable Machine 15 | . . . 15 Destroy Structure 50 | . . 10 40 Lose Combat Pursuer 15 | . . . 15 Influence Decreases 240 | . . 110 130 Time Decay 151 | . . 81 70 Lost Part 89 | . . 29 60 Squads Dispatched 2 | . 2 . . Investigation 1 | . 1 . . Extermination . | . . . . Reinforcement 1 | . 1 . . Assault . | . . . . Garrison . | . . . . Intercept . | . . . . Searches Triggered . | . . . . Construction Impeded . | . . . . Haulers Reinforced . | . . . . Active Scanning Responses . | . . . . Cargo Convoy Interrupts . | . . . . Stealth | -11 -10 -10 -9 --------- Run | Yrd Mat Min Mat Distress Signals 1 | . . . 1 Communications Jammed . | . . . . Distress Signals . | . . . . Times Spotted 18 | . 3 5 10 Peak Tracking Total 5 | . 2 3 5 Tactical Retreats 1 | . . . 1 Traps | -11 -10 -10 -9 ------- Run | Yrd Mat Min Mat Traps Triggered 1 | . 1 . . Indirectly . | . . . . Trap Hack Attempts . | . . . . Triggered . | . . . . Disarmed . | . . . . Reprogrammed . | . . . . Reused . | . . . . Traps Extracted . | . . . . Installed . | . . . . Triggered . | . . . . Machines | -11 -10 -10 -9 ---------- Run | Yrd Mat Min Mat Machines Disabled 1 | . . . 1 Max in Single Turn 1 | . . . 1 Machines Repaired . | . . . . Machines Dismantled . | . . . . Machines Sabotaged . | . . . . Overloaded Fab Kills . | . . . . Hacking | -11 -10 -10 -9 --------- Run | Yrd Mat Min Mat Machines Accessed 2 | . 1 1 . Terminals 2 | . 1 1 . Fabricators . | . . . . Repair Stations . | . . . . Recycling Units . | . . . . Scanalyzers . | . . . . Garrison Access . | . . . . Total Hacks 5 | . 3 2 . Successful 2 | . 1 1 . Failed 3 | . 2 1 . Catastrophic 1 | . . 1 . Database Lockouts . | . . . . Manual . | . . . . Terminals 5 | . 3 2 . Fabricators . | . . . . Repair Stations . | . . . . Recycling Units . | . . . . Scanalyzers . | . . . . Garrison Access . | . . . . Terminal Hacks 2 | . 1 1 . Record 1 | . 1 . . Investigation Status 1 | . . 1 . Fabricator Hacks . | . . . . Repair Station Hacks . | . . . . Recycling Unit Hacks . | . . . . Scanalyzer . | . . . . Garrison Access Hacks . | . . . . Unauthorized Hacks . | . . . . Terminals . | . . . . Fabricators . | . . . . Repair Stations . | . . . . Recycling Units . | . . . . Scanalyzers . | . . . . Garrison Access . | . . . . Data Cores Recovered . | . . . . Used . | . . . . Hacking Detections 2 | . 1 1 . Full Trace Events . | . . . . Feedback Events . | . . . . Feedback Blocked . | . . . . Robot Schematics Acquired . | . . . . Robots Built . | . . . . Authchips . | . . . . Time . | . . . . Total Robot Build Rating . | . . . . Part Schematics Acquired . | . . . . Parts Built . | . . . . Authchips . | . . . . Time . | . . . . Total Part Build Rating . | . . . . Part Studies Acquired . | . . . . Parts Repaired . | . . . . Time . | . . . . Parts Recycled . | . . . . Recycled Matter . | . . . . Retrieved Matter . | . . . . Retrieved Components . | . . . . Parts Scanalyzed . | . . . . Part Schematics Acquired . | . . . . Parts Damaged . | . . . . Bothacking | -11 -10 -10 -9 ------------ Run | Yrd Mat Min Mat Used RIF Installer . | . . . . Robots Hacked . | . . . . Non-combat . | . . . . Combat . | . . . . Robot Hacks Applied . | . . . . Relay Couplers Released . | . . . . Fabnet Peak Effective % . | . . . . Robots Rewired . | . . . . Allies Hacked . | . . . . Hacks Repelled . | . . . . Allies | -11 -10 -10 -9 -------- Run | Yrd Mat Min Mat Total Allies . | . . . . Largest Group . | . . . . Highest-Rated Group . | . . . . Highest-Rated Ally . | . . . . Total Orders . | . . . . Ally Attacks . | . . . . Total Damage . | . . . . Kills . | . . . . Allies Corrupted . | . . . . Allies Melted . | . . . . Intel | -11 -10 -10 -9 ------- Run | Yrd Mat Min Mat Active Infowar (turns) . | . . . . Robot Analysis Total . | . . . . Derelict Logs Recovered . | . . . . Drone Launches . | . . . . Drone Recoveries . | . . . . Exploration | -11 -10 -10 -9 ------------- Run | Yrd Mat Min Mat Turns Passed 927 | 78 221 423 205 Spaces Moved 554 | 56 147 222 129 Core 7 | 7 . . . Treads . | . . . . Legs 338 | 49 147 142 . Wheels 209 | . . 80 129 Hover . | . . . . Flight . | . . . . Fastest Speed 50 | 50 120 100 100 Average Speed 135 | 111 140 157 103 Slowest Speed 190 | 120 190 190 115 Overloaded Moves . | . . . . Propulsion Burnouts . | . . . . Robots Hopped . | . . . . Potential Cave-ins . | . . . . Cave-ins Triggered . | . . . . Exploration Rate (%) 21 | 3 25 48 11 Regions Visited 3 Branch Regions 1 Pre-discovered Areas . | . . . . Known Exits Taken . | . . . . Unknown Exits Taken 3 | 1 1 1 . Scrap Searched . | . . . . Spaces Dug . | . . . . Terrain Destroyed 87 | . . 38 49 Melee . | . . . . Projectile 2 | . . . 2 AOE 85 | . . 38 47 Terrain Rammed . | . . . . Walls Destroyed . | . . . . Machines Disabled . | . . . . Actions | -11 -10 -10 -9 --------- Run | Yrd Mat Min Mat Total 656 | 71 160 258 167 Wait 12 | . . 2 10 Move 551 | 55 146 221 129 Hop . | . . . . Pick Up 23 | 10 8 3 2 Fast Attach . | . . . . Attach 13 | 6 1 4 2 Detach 1 | . . . 1 Swap 6 | . 1 3 2 Drop 4 | . 2 2 . Fire 43 | . 2 23 18 Melee . | . . . . Ram 3 | . . . 3 Kick . | . . . . Crush . | . . . . Escape Stasis . | . . . . Rewire . | . . . . Trap . | . . . . Miscellaneous . | . . . . Route ------- -11/Scrapyard -10/Materials -10/Mines -9/Materials History --------- Turn | Location | Event 8 | -11/Scrapyard | Discovered new exit (range 16) 79 | -11/Scrapyard | Entered Materials 281 | -10/Materials | Discovered new exit (range 8) 300 | -10/Materials | Build established: Mutant 300 | -10/Materials | Entered Mines 351 | -10/Mines | Received a Rocket Launcher from a helpful Derelict 636 | -10/Mines | Core integrity fell below 50% 666 | -10/Mines | Lost 4 parts (1p1n2w) 697 | -10/Mines | Found a hidden stash of uninstalled traps 716 | -10/Mines | Discovered new exit (range 5) 723 | -10/Mines | Entered Materials 723 | -9/Materials | Evolved 2 slots: Propulsion x2 892 | -9/Materials | Core integrity fell below 50% 911 | -9/Materials | Lost 3 parts (1p1n1w) 923 | -9/Materials | Core integrity fell below 20% 928 | -9/Materials | Destroyed by Y-45 Defender with Heavy Assault Rifle Last Messages --------------- Acquired 10 matter. K-01 Serf collects debris. [Achievement: Oops] In emergency situations without enough matter to attach a part, one approach is to ram any robot to regain a small amount, for example to attach a melee or energy weapon to more easily destroy targets for more matter. K-01 Serf collects debris. Lgt. Ion Engine destroyed. Sml. Laser destroyed. Slammed into Y-45 Defender. Com. Wheel destroyed. Acquired Mining Laser. G-34 Mercenary destroyed. Acquired Mining Laser. Mining Laser destroyed. Com. Wheel destroyed. Slammed into G-34 Mercenary. Acquired 30 matter. Map ----- +----------------------------------------------------+ | ????????????????????????????????????????????? | | ????????????????????????????????????????????? | | ????????????????????????????????????????????? | | ????????????????????????????????????????????? | | ????????????????????????????????????????????? | | ????????????????????????????????????????????? | | ????????????????????????????????????????????? | | ????????????????????????????????????????????? | | ????????????????????????????????????????????? | | ????????????????????????????????????????????? | | ????????????????????????????????????????????? | | ????????????????????????????????????????????? | | ????????????????????????????????????????????? | | ????????????????????????????????????????????? | | ????????????????????????????????????????????? | | ????????????????????????????????????????????? | | ????????????????#######?????????????????????? | | ????????????????# #?????????????????????? | | ????????????????# #?????????????????????? | | ????????????????# ?????????????????????? | | ????????????????# ??????????????????????? | | ????????????????# ?????#????????????????? | | ?????????????????# #####+#####????????????? | | ?????????????????# # Y #????????????? | | ?????????????????# g; "#????????????? | | ?????????????????# [@/ T#????????????? | | ?????????????????# Y ; "#????????????? | | ?????????????????# # ! #????????????? | | ??????????######## # ! #????????????? | | ??????????# # !! #????????????? | | ??????????# # #????????????? | | ??????????# ###########????????????? | | ??????????# ##########????????????????????? | | ??????????# # #????????????????????? | | ??????????# # """ #????????????????????? | | ??????##### # """ #????????????????????? | | ??????# # """ #????????????????????? | | ??????# + #????????????????????? | | ??????# # """ #????????????????????? | | ?########## # """ #????????????????????? | | ?# # # """ #????????????????????? | | ?# """ # # #????????????????????? | | ?# """ + ##########????????????????????? | | ?# """ # #?????????????????????????????? | | ?# # #?????????????????????????????? | | ?# """ # #?????????? ?????????????????? | | ?# """ # #????#??!! "????????????????? | | ?# """ # #### # !! ???????????????? | | ?# # !! ???????????????? | | ?########## = * # ???????????????? | +----------------------------------------------------+ Best States ------------- Heat Dissipation 28 Energy Generation 10 Energy Capacity 125 Matter Stores 248 Matter Capacity 500 Sight Range 16 Terrain Scan Density 10 Evasion (%) 55 Item Schematics ----------------- None Robot Schematics ------------------ None Fabricated ------------ Nothing Repaired ---------- Nothing Studied --------- None Alien Tech Used ----------------- None Achievements -------------- Oops Challenges ------------ None Game ------ Seed DroneChromaticForcewell Manual? 0 Play Time 00:19:36 Cumulative 1.4 hours Start 2026.07.08 @ 07:30:50 End 2026.07.08 @ 07:53:16 Sessions 1 Manual Loads 0 Difficulty Rogue Special Mode None Game No. 3 Rogue 3 Adventurer 0 Explorer 0 Win Type - Total 0 Types 0/0/0/0/0/0/0/0/0/0 Lore% 0 Gallery% 2 Achievement% 2 Wizard Run 0 Options --------- Layout 1 ASCII 0 Keyboard 0 Movement Vi Keybinds 0 Fullscreen 1 Font 24/Smallcaps Map View 50x35 Zoom Use 0% Tactical HUD 0 Map Filters NONE Filters NONE Steam 0 RUN: d675beac-8530-47ec-9edf-7ee4b08e1ebc